bitfinex/quotes_ETHUSD_20230119
["timestamp","ask_amount","ask_price","bid_price","bid_amount"]
[1674092462466,3.08361383,1521.0,1520.9,1.12982183]
[1674092463050,4.91357229,1521.0,1520.9,1.12982183]
[1674092463269,7.79606002,1521.0,1520.9,1.12982183]
[1674092463573,12.46429002,1521.0,1520.9,1.12982183]
[1674092464189,12.46429002,1521.0,1520.5,8.30059187]
[1674092464190,13.49935354,1521.0,1520.5,8.30059187]
[1674092464507,1.246429,1520.9,1520.5,7.61452604]
[1674092464675,1.0,1520.8,1520.6,3.0]
[1674092465096,2.246429,1520.9,1520.6,3.0]
[1674092465737,2.246429,1520.9,1520.5,1.03804604]
[1674092465738,5.8276129,1520.8,1520.5,1.03804604]
[1674092465950,5.8276129,1520.8,1520.5,0.97204604]
[1674092465951,10.4965829,1520.8,1520.5,0.97204604]
[1674092466208,12.0475829,1520.8,1520.5,0.97204604]
[1674092466428,1.20475829,1520.7,1520.5,0.97204604]
[1674092466635,5.80796829,1520.7,1520.5,0.97204604]
[1674092466847,5.87396829,1520.7,1520.5,0.97204604]
[1674092467016,6.87396829,1520.7,1520.5,0.97204604]
[1674092467437,5.87396829,1520.7,1520.5,0.97204604]
[1674092468207,0.58739683,1520.6,1520.5,0.97204604]
[1674092468676,1.58739683,1520.6,1520.5,0.97204604]
[1674092469096,0.58739683,1520.6,1520.5,0.97204604]
[1674092473051,5.19083683,1520.6,1520.5,0.97204604]
[1674092473355,0.65339683,1520.6,1520.5,0.97204604]
[1674092473580,12.01517829,1520.7,1520.5,0.97204604]
[1674092480502,12.50847829,1520.7,1520.5,0.97204604]
[1674092486066,12.50458268,1520.7,1520.5,0.97204604]
[1674092486389,12.01128268,1520.7,1520.5,0.97204604]
[1674092486615,1.20112827,1520.6,1520.5,0.97204604]
[1674092486905,5.80456827,1520.6,1520.5,0.97204604]
[1674092487068,6.87056827,1520.6,1520.5,0.97204604]
[1674092487273,0.066,1520.6,1520.5,0.97204604]
[1674092487520,4.66921,1520.7,1520.5,0.97204604]
[1674092487756,5.60321,1520.7,1520.5,0.97204604]
[1674092487974,4.66921,1520.7,1520.5,0.97204604]
[1674092488196,0.466921,1520.6,1520.5,0.97204604]
[1674092489215,4.66921,1520.7,1520.5,0.97204604]
[1674092489422,4.60321,1520.7,1520.5,0.97204604]
[1674092496727,5.60321,1520.7,1520.5,0.97204604]
[1674092496949,5.66921,1520.7,1520.5,0.97204604]
[1674092497255,4.66921,1520.7,1520.5,0.97204604]
[1674092497462,6.66379329,1520.7,1520.5,0.97204604]
[1674092497797,6.72979329,1520.7,1520.5,0.97204604]
[1674092499933,7.72979329,1520.7,1520.5,0.97204604]
[1674092500142,6.72979329,1520.7,1520.5,0.97204604]
[1674092500348,8.41783156,1520.7,1520.5,0.97204604]
[1674092500608,0.84178316,1520.6,1520.5,0.97204604]
[1674092501667,1.84178316,1520.6,1520.5,0.97204604]
[1674092501878,0.84178316,1520.6,1520.5,0.97204604]
[1674092503563,8.28379329,1520.7,1520.5,0.97204604]
[1674092504178,8.97183156,1520.7,1520.5,0.97204604]
[1674092504387,9.97183156,1520.7,1520.5,0.97204604]
[1674092504555,8.97183156,1520.7,1520.5,0.97204604]
[1674092504760,0.89718316,1520.6,1520.5,0.97204604]
[1674092508990,1.58522143,1520.6,1520.5,0.97204604]
[1674092509230,0.89718316,1520.6,1520.5,0.97204604]
[1674092510439,8.97183156,1520.7,1520.5,0.97204604]
[1674092510588,7.41783156,1520.7,1520.5,0.97204604]
[1674092511499,0.066,1520.7,1520.5,0.97204604]
[1674092511747,1.24723827,1520.9,1520.5,17.81167187]
[1674092511922,1.18123827,1520.9,1520.7,0.00262639]
[1674092512142,6.89877179,1521.0,1520.7,3.00262639]
[1674092512788,1.8299921,1520.9,1520.7,3.00262639]
[1674092513611,0.68803827,1520.9,1520.7,3.00262639]
[1674092513824,5.86370827,1521.0,1520.7,3.00262639]
[1674092514017,9.32343969,1521.0,1520.7,3.00262639]
[1674092514227,11.03658564,1521.0,1520.7,3.00262639]
[1674092514475,7.57685422,1521.0,1520.7,3.00262639]
[1674092514665,5.86370827,1521.0,1520.7,3.00262639]
[1674092515125,1.26123827,1521.0,1520.7,3.00262639]
[1674092515446,1.19523827,1521.0,1520.7,3.00262639]
[1674092516436,0.70203827,1521.0,1520.7,3.00262639]
[1674092516652,0.014,1521.0,1520.7,9.57836639]
[1674092516862,0.01113997,1521.0,1520.7,9.64436639]
[1674092517099,0.01113997,1521.0,1520.7,16.22027639]
[1674092517319,0.01113997,1521.0,1520.7,17.22027639]
[1674092517907,0.01113997,1521.0,1520.8,1.0]
[1674092518378,0.01113997,1521.0,1520.7,17.22027639]
[1674092518581,0.01113997,1521.0,1520.8,1.0]
[1674092518795,0.01113997,1521.0,1520.7,17.22027639]
[1674092519002,0.01113997,1521.0,1520.8,1.0]
[1674092519168,0.01113997,1521.0,1520.7,16.22027639]
[1674092519696,0.01113997,1521.0,1520.7,17.22027639]
[1674092519966,0.01113997,1521.0,1520.8,1.0]
[1674092520539,0.01113997,1521.0,1520.8,18.32741662]
[1674092520751,0.01113997,1521.0,1520.9,4.10654173]
[1674092520963,0.01113997,1521.0,1520.9,17.25664173]
[1674092521288,0.01113997,1521.0,1520.9,16.85284173]
[1674092521851,0.01113997,1521.0,1520.9,17.85284173]
[1674092524463,0.01113997,1521.0,1520.9,16.85284173]
[1674092525265,0.01113997,1521.0,1520.9,18.14884173]
[1674092528468,0.01113997,1521.0,1520.9,37.73796784]
[1674092528683,0.01113997,1521.0,1520.9,38.42403367]
[1674092528835,0.01113997,1521.0,1520.9,37.73796784]
[1674092529045,0.01113997,1521.0,1520.9,38.42403367]
[1674092529517,0.01113997,1521.0,1520.9,37.73796784]
[1674092529829,0.01113997,1521.0,1520.9,33.56150122]
[1674092533504,0.01113997,1521.0,1520.9,37.73796784]
[1674092533729,0.01113997,1521.0,1520.9,33.56150122]
[1674092535052,0.01113997,1521.0,1520.9,37.73796784]
[1674092535800,0.01113997,1521.0,1520.9,33.56150122]
[1674092536330,0.01113997,1521.0,1520.9,37.73796784]
[1674092537244,0.01113997,1521.0,1520.9,35.14196784]
[1674092537458,0.00765358,1521.0,1520.9,38.23896784]
[1674092539696,0.00765358,1521.0,1520.9,34.06250122]
[1674092541924,3.58e-06,1521.0,1520.9,38.23896784]
[1674092542147,0.07099887,1521.4,1520.9,38.23896784]
[1674092542148,0.07099887,1521.4,1521.0,1.007]
[1674092542477,0.07099887,1521.4,1521.3,41.72793949]
[1674092542639,0.07099887,1521.4,1521.3,46.57593949]
[1674092542849,0.07099887,1521.4,1521.3,64.98528122]
[1674092543273,0.09098678,1521.5,1521.3,64.98528122]
[1674092543481,0.09098678,1521.5,1521.4,19.45878]
[1674092543693,0.09098678,1521.5,1521.4,23.70124662]
[1674092543694,6.78e-06,1521.5,1521.4,23.70124662]
[1674092543948,0.06687507,1521.6,1521.5,1.0]
[1674092544159,0.06687507,1521.6,1521.5,31.35457949]
[1674092544472,0.06687507,1521.6,1521.5,39.23378784]
[1674092544630,5.07e-06,1521.6,1521.5,39.23378784]
[1674092544840,0.06687507,1521.7,1521.5,39.23378784]
[1674092545053,0.06687507,1521.7,1521.6,20.45304]
[1674092545304,0.06687507,1521.7,1521.6,20.51904]
[1674092545515,0.06687507,1521.7,1521.6,21.15578173]
[1674092546531,0.06687507,1521.7,1521.6,30.75448173]
[1674092548425,5.07e-06,1521.7,1521.6,34.93094835]
[1674092548642,0.08889274,1521.8,1521.7,1.732]
[1674092548898,0.08889274,1521.8,1521.7,30.30983949]
[1674092549044,0.08889274,1521.8,1521.7,34.24258122]
[1674092550025,0.08889274,1521.8,1521.7,38.41904784]
[1674092550209,0.08889274,1521.8,1521.7,34.24258122]
[1674092551519,2.74e-06,1521.8,1521.7,45.32704784]
[1674092552155,2.74e-06,1521.8,1521.7,46.87904784]
[1674092553804,2.74e-06,1521.8,1521.7,42.70258122]
[1674092554203,2.74e-06,1521.8,1521.7,46.87904784]
[1674092554436,2.74e-06,1521.8,1521.7,50.81804784]
[1674092554609,2.74e-06,1521.8,1521.7,46.64158122]
[1674092557040,2.74e-06,1521.8,1521.7,45.08958122]
[1674092559461,2.74e-06,1521.8,1521.7,49.26604784]
[1674092560539,2.74e-06,1521.8,1521.7,45.08958122]
[1674092561241,2.74e-06,1521.8,1521.7,44.45283949]
[1674092561453,2.74e-06,1521.8,1521.7,45.08958122]
[1674092562088,2.74e-06,1521.8,1521.7,49.26604784]
[1674092562507,2.74e-06,1521.8,1521.7,45.08958122]
[1674092562765,2.74e-06,1521.8,1521.7,49.26604784]
[1674092563828,2.74e-06,1521.8,1521.7,45.08958122]
[1674092564228,2.74e-06,1521.8,1521.7,33.17658122]
[1674092564401,2.74e-06,1521.8,1521.7,17.74192173]
[1674092567259,2.74e-06,1521.8,1521.7,17.10518]
[1674092567477,2.74e-06,1521.8,1521.7,17.74192173]
[1674092573237,2.74e-06,1521.8,1521.7,17.10518]
[1674092573506,2.74e-06,1521.8,1521.7,17.74192173]
[1674092573831,0.08585665,1521.9,1521.8,0.66989073]
[1674092574125,0.08585665,1521.9,1521.8,30.92487022]
[1674092574340,0.08585665,1521.9,1521.8,31.62761195]
[1674092575861,0.08585665,1521.9,1521.8,17.74495246]
[1674092576922,0.08585665,1521.9,1521.8,16.84895246]
[1674092577698,0.08585665,1521.9,1521.8,16.21221073]
[1674092591548,0.08585665,1521.9,1521.8,16.84895246]
[1674092592395,0.08585665,1521.9,1521.8,16.84549059]
[1674092597803,0.08585665,1521.9,1521.8,17.53155642]
[1674092599168,0.08585665,1521.9,1521.8,16.84549059]
[1674092600170,0.08585665,1521.9,1521.8,17.07549059]
[1674092602385,0.08585665,1521.9,1521.8,17.76155642]
[1674092602919,0.08585665,1521.9,1521.8,17.07549059]
[1674092603757,0.08585665,1521.9,1521.8,16.84549059]
[1674092607532,0.08585665,1521.9,1521.8,16.20874886]
[1674092613359,0.08585665,1521.9,1521.8,16.84549059]
[1674092615987,0.08194659,1521.9,1521.8,16.84549059]
[1674092619278,0.08194659,1521.9,1521.8,3.06642886]
[1674092619279,1.37894659,1521.9,1521.8,3.06642886]
[1674092619488,2.06698486,1521.9,1521.8,0.00042886]
[1674092619716,3.20819732,1521.9,1521.8,0.00042886]
[1674092620016,3.92687991,1521.9,1521.8,0.00042886]
[1674092621007,4.92687991,1521.9,1521.8,0.00042886]
[1674092622230,3.92687991,1521.9,1521.8,0.00042886]
[1674092622593,5.45558805,1521.9,1521.8,0.00042886]
[1674092622841,6.82058805,1521.9,1521.8,0.00042886]
[1674092623052,7.13180516,1521.9,1521.8,0.00042886]
[1674092623242,19.00990986,1521.9,1521.8,0.00042886]
[1674092623453,19.00990986,1521.9,1521.4,30.336]
[1674092623639,19.00990986,1521.9,1521.4,6.63879]
[1674092623640,4.22392335,1521.8,1521.4,6.63879]
[1674092623874,1.299,1521.5,1521.4,6.63879]
[1674092625142,1.299,1521.5,1521.4,9.63879]
[1674092630054,1.299,1521.5,1521.4,3.066]
[1674092630279,1.299,1521.5,1521.4,3.0]
[1674092632378,1.5577,1521.5,1521.4,3.0]
[1674092632779,1.5577,1521.5,1521.3,6.63891]
[1674092632780,2.8567,1521.5,1521.3,0.066]
[1674092633037,2.578,1521.4,1521.1,6.63984]
[1674092633212,1.57267,1521.4,1521.2,3.0]
[1674092635667,1.57267,1521.4,1521.2,9.57359]
[1674092635986,1.287,1521.4,1521.2,9.63959]
[1674092640286,1.297,1521.3,1521.2,9.63959]
[1674092645198,1.553,1521.4,1521.2,9.63959]
[1674092645403,9.1459,1521.5,1521.3,0.6693457]
[1674092645648,9.1459,1521.5,1521.3,7.2424557]
[1674092645836,9.1459,1521.5,1521.3,13.8817757]
[1674092647235,8.8872,1521.5,1521.3,13.8817757]
[1674092650249,8.88463,1521.5,1521.3,13.8817757]
[1674092650458,8.88663,1521.5,1521.3,13.8817757]
[1674092651073,0.06543,1521.5,1521.4,3.0]
[1674092651289,18.89343,1521.8,1521.4,16.14578]
[1674092651616,18.89343,1521.8,1521.4,17.48526346]
[1674092651617,18.40053,1521.8,1521.4,17.48526346]
[1674092651810,18.40053,1521.8,1521.4,16.84852173]
[1674092653322,18.40053,1521.8,1521.4,21.02498835]
[1674092653323,0.06543,1521.8,1521.4,21.02498835]
[1674092653513,0.08194659,1521.9,1521.5,1.63674173]
[1674092653702,0.08194659,1521.9,1521.6,19.71582]
[1674092653989,0.08194659,1521.9,1521.7,3.0]
[1674092654169,0.08194659,1521.9,1521.8,6.57116]
[1674092654334,0.08194659,1521.9,1521.8,9.63716]
[1674092657602,0.08194659,1521.9,1521.8,16.20832]
[1674092658768,0.08194659,1521.9,1521.8,21.02152835]
[1674092659125,0.08194659,1521.9,1521.8,22.79952835]
[1674092660480,0.08194659,1521.9,1521.8,18.62306173]
[1674092660637,0.08194659,1521.9,1521.8,22.79952835]
[1674092661370,0.08194659,1521.9,1521.8,18.62306173]
[1674092661816,0.08194659,1521.9,1521.8,17.07506173]
[1674092662190,0.08194659,1521.9,1521.8,16.84506173]
[1674092671633,0.08194659,1521.9,1521.8,16.20832]
[1674092672757,0.07869469,1521.9,1521.8,16.20832]
[1674092673579,0.07869469,1521.9,1521.8,17.20832]
[1674092673790,0.07869469,1521.9,1521.8,19.39806173]
[1674092674322,0.07869469,1521.9,1521.8,19.62806173]
[1674092674988,0.07869469,1521.9,1521.8,37.68718784]
[1674092676429,4.69e-06,1521.9,1521.8,37.68718784]
[1674092676801,0.08566505,1522.0,1521.8,37.68718784]
[1674092676946,0.08566505,1522.0,1521.9,5.778]
[1674092677156,0.08566505,1522.0,1521.9,23.16192662]
[1674092677421,0.08566505,1522.0,1521.9,19.62220173]
[1674092680154,0.09124164,1522.1,1521.9,19.62220173]
[1674092680371,0.09124164,1522.1,1521.9,34.64566835]
[1674092680598,0.09124164,1522.1,1522.0,19.59712611]
[1674092680751,0.09124164,1522.1,1522.0,36.03372611]
[1674092680962,0.09124164,1522.1,1522.0,36.67046784]
[1674092681288,0.09124164,1522.1,1522.0,32.49400122]
[1674092681944,0.09124164,1522.1,1522.0,36.67046784]
[1674092683641,0.09124164,1522.1,1522.0,32.49400122]
[1674092686490,0.09124164,1522.1,1522.0,30.95600122]
[1674092689525,0.09124164,1522.1,1522.0,36.68546784]
[1674092689698,0.09124164,1522.1,1522.0,36.68155868]
[1674092689916,0.09124164,1522.1,1522.0,22.80280835]
[1674092691466,0.09124164,1522.1,1522.0,32.50509206]
[1674092691750,0.09124164,1522.1,1522.0,36.68155868]
[1674092693082,0.09124164,1522.1,1522.0,32.50509206]
[1674092693865,0.09124164,1522.1,1522.0,36.68155868]
[1674092694358,0.09124164,1522.1,1522.0,32.50509206]
[1674092694972,0.09124164,1522.1,1522.0,36.68155868]
[1674092696301,0.09124164,1522.1,1522.0,32.50509206]
[1674092696992,0.09124164,1522.1,1522.0,18.62634173]
[1674092697682,0.09124164,1522.1,1522.0,16.84334173]
[1674092703598,0.09124164,1522.1,1522.0,16.2066]
[1674092703797,0.77224164,1522.1,1522.0,16.2066]
[1674092705072,0.09124164,1522.1,1522.0,16.2066]
[1674092712137,0.08868571,1522.1,1522.0,16.2066]
[1674092726275,0.08868571,1522.1,1522.0,16.89266583]
[1674092726754,0.08868571,1522.1,1522.0,17.52940756]
[1674092727703,0.08868571,1522.1,1522.0,16.84334173]
[1674092729578,0.08868571,1522.1,1522.0,16.2066]
[1674092730405,0.08868571,1522.1,1522.0,16.89266583]
[1674092731440,0.08868571,1522.1,1522.0,17.52940756]
[1674092734733,0.08571818,1522.1,1522.0,17.52940756]
[1674092737915,0.08571818,1522.1,1522.0,17.5266909]
[1674092739490,0.08571818,1522.1,1522.0,16.84062507]
[1674092740069,0.08571818,1522.1,1522.0,17.5266909]
[1674092744777,0.08571818,1522.1,1522.0,16.84062507]
[1674092744971,0.08571818,1522.1,1522.0,17.5266909]
[1674092746779,0.08571818,1522.1,1522.0,17.7566909]
[1674092746937,0.08571818,1522.1,1522.0,18.78578964]
[1674092748315,0.08571818,1522.1,1522.0,18.09972381]
[1674092748514,0.08571818,1522.1,1522.0,19.47185547]
[1674092750199,0.08571818,1522.1,1522.0,18.44275673]
[1674092750556,0.08571818,1522.1,1522.0,20.1579213]
[1674092750927,8.18e-06,1522.1,1522.0,24.33438792]
[1674092751130,8.18e-06,1522.1,1522.0,22.96225626]
[1674092751337,8.18e-06,1522.1,1522.0,24.33004581]
[1674092752343,8.18e-06,1522.1,1522.0,20.15357919]
[1674092752866,8.18e-06,1522.1,1522.0,24.33004581]
[1674092753395,8.18e-06,1522.1,1522.0,22.61488124]
[1674092753561,8.18e-06,1522.1,1522.0,18.43841462]
[1674092755016,8.18e-06,1522.1,1522.0,18.0964544]
[1674092755501,8.18e-06,1522.1,1522.0,17.52458675]
[1674092755672,8.18e-06,1522.1,1522.0,16.88784502]
[1674092757225,8.18e-06,1522.1,1522.0,19.46424395]
[1674092759854,8.18e-06,1522.1,1522.0,18.0964544]
[1674092760435,8.18e-06,1522.1,1522.0,17.75461775]
[1674092762936,8.18e-06,1522.1,1522.0,18.78044708]
[1674092763322,8.18e-06,1522.1,1522.0,17.75461775]
[1674092766319,8.18e-06,1522.1,1522.0,17.52461775]
[1674092766481,8.18e-06,1522.1,1522.0,16.20388334]
[1674092766892,8.18e-06,1522.1,1522.0,13.2066]
[1674092768230,8.18e-06,1522.1,1522.0,16.2066]
[1674092775106,0.09124164,1522.2,1522.1,0.0037405]
[1674092775477,0.09124164,1522.2,1522.1,16.1434805]
[1674092775686,0.09124164,1522.2,1522.1,16.2094805]
[1674092776837,0.09124164,1522.2,1522.1,3.0697405]
[1674092776838,1.71480587,1522.2,1522.1,3.0697405]
[1674092777051,3.26580587,1522.2,1522.1,0.0037405]
[1674092777415,5.09563629,1522.2,1522.1,0.0037405]
[1674092777620,5.16106629,1522.2,1522.1,0.0037405]
[1674092778152,4.02005577,1522.2,1522.1,0.0037405]
[1674092778401,14.45340115,1522.2,1521.8,0.064]
[1674092778565,3.097,1521.9,1521.7,0.066]
[1674092778786,1.553,1521.8,1521.6,0.066]
[1674092778998,1.553,1521.8,1521.5,13.21042]
[1674092778999,1.7083,1521.7,1521.5,13.21042]
[1674092779305,1.7083,1521.7,1521.5,0.066]
[1674092779306,1.553,1521.6,1521.5,0.066]
[1674092779570,3.596,1521.6,1521.4,0.066]
[1674092779760,1.7083,1521.5,1521.2,37.67611298]
[1674092779974,1.553,1521.3,1521.2,6.7221203]
[1674092780359,1.553,1521.3,1521.2,0.1487403]
[1674092780614,1.553,1521.3,1521.2,0.0827403]
[1674092781360,1.553,1521.3,1521.2,3.0827403]
[1674092781527,1.553,1521.3,1521.2,9.6564903]
[1674092781738,1.553,1521.3,1521.2,9.7224903]
[1674092783212,1.553,1521.3,1521.2,3.1487403]
[1674092783421,1.774693,1521.3,1521.2,0.0827403]
[1674092786510,3.324693,1521.3,1521.2,0.0827403]
[1674092787079,4.324693,1521.3,1521.2,0.0827403]
[1674092787712,4.817793,1521.3,1521.2,0.0827403]
[1674092788095,6.363793,1521.3,1521.2,0.0827403]
[1674092788391,6.429223,1521.3,1521.2,0.0827403]
[1674092788605,4.876223,1521.3,1521.2,0.0827403]
[1674092788818,4.810793,1521.3,1521.2,0.0827403]
[1674092790265,14.013433,1521.3,1521.2,0.0827403]
[1674092790491,14.078863,1521.3,1521.2,0.0827403]
[1674092793770,9.477543,1521.3,1521.2,0.0827403]
[1674092793934,4.876223,1521.3,1521.2,0.0827403]
[1674092794139,4.810793,1521.3,1521.2,0.0827403]
[1674092795646,9.412113,1521.3,1521.2,0.0827403]
[1674092795953,9.477543,1521.3,1521.2,0.0827403]
[1674092797164,8.477543,1521.3,1521.2,0.0827403]
[1674092797636,6.931543,1521.3,1521.0,0.08998253]
[1674092797844,2.8938543,1521.2,1521.0,0.08998253]
[1674092798606,3.8938543,1521.2,1521.0,0.08998253]
[1674092799437,2.8938543,1521.2,1521.0,0.08998253]
[1674092799648,3.8938543,1521.2,1521.0,0.08998253]
[1674092799855,0.38938543,1521.1,1521.0,0.08998253]
[1674092800889,1.3408543,1521.2,1521.0,6.66460253]
[1674092801099,9.80663,1521.3,1521.0,6.73060253]
[1674092801628,0.55853,1521.3,1521.0,13.30522253]
[1674092801878,9.57333,1521.4,1521.0,14.84322253]
[1674092802093,9.57333,1521.4,1521.1,3.0]
[1674092802256,0.06543,1521.4,1521.2,19.72125]
[1674092802471,0.55843,1521.6,1521.2,19.78725]
[1674092802787,0.493,1521.6,1521.2,19.78725]
[1674092803262,10.7941,1521.7,1521.2,19.78725]
[1674092803263,11.35253,1521.7,1521.2,19.78725]
[1674092803956,13.872889,1521.7,1521.2,19.78725]
[1674092804162,13.872889,1521.7,1521.2,19.78365812]
[1674092804821,14.872889,1521.7,1521.2,19.78365812]
[1674092806147,1.0,1521.6,1521.2,19.78365812]
[1674092807299,1.0,1521.6,1521.2,13.20990812]
[1674092807509,1.0,1521.6,1521.2,0.066]
[1674092807510,0.1,1521.5,1521.2,0.066]
[1674092807765,1.553,1521.3,1521.0,13.30522253]
[1674092807980,0.1553,1521.2,1521.0,13.30522253]
[1674092808152,1.553,1521.3,1521.0,13.30522253]
[1674092810718,1.553,1521.3,1521.0,0.15598253]
[1674092810873,1.553,1521.3,1521.0,3.08998253]
[1674092816430,7.1544,1521.3,1521.0,3.08998253]
[1674092816633,7.21983,1521.3,1521.0,0.08998253]
[1674092816783,2.274983,1521.2,1521.0,0.08998253]
[1674092816998,3.274983,1521.2,1521.0,0.08998253]
[1674092817671,1.0,1521.1,1521.0,0.08998253]
[1674092817840,2.543,1521.1,1521.0,0.08998253]
[1674092818042,11.74686,1521.1,1521.0,0.08998253]
[1674092818283,13.6259073,1521.1,1521.0,0.08998253]
[1674092820350,15.6720073,1521.1,1520.9,0.09004657]
[1674092820601,15.6720073,1521.1,1520.9,6.404e-05]
[1674092820602,5.92453829,1521.0,1520.9,6.404e-05]
[1674092820790,1.0,1520.9,1520.6,0.08998253]
[1674092821000,1.546,1520.7,1520.6,0.08998253]
[1674092821230,15.35542,1520.7,1520.6,0.08998253]
[1674092821447,15.42085,1520.7,1520.6,0.08998253]
[1674092821718,16.962935,1520.7,1520.6,0.08998253]
[1674092824733,19.20454812,1520.7,1520.6,0.08998253]
[1674092824892,20.84003899,1520.7,1520.6,0.08998253]
[1674092825419,20.84008113,1520.7,1520.4,0.08998253]
[1674092825645,1.553,1520.5,1520.4,0.08998253]
[1674092826685,2.553,1520.5,1520.4,0.08998253]
[1674092827030,16.36422,1520.5,1520.4,0.08998253]
[1674092827204,16.42965,1520.5,1520.4,0.08998253]
[1674092829134,4.66917,1520.5,1520.4,0.08998253]
[1674092829288,5.48368781,1520.5,1520.4,0.08998253]
[1674092829495,5.54911781,1520.5,1520.4,0.08998253]
[1674092830185,0.94537781,1520.5,1520.4,0.08998253]
[1674092830334,0.87994781,1520.5,1520.4,0.08998253]
[1674092834205,0.06543,1520.6,1520.4,0.83098253]
[1674092834388,15.086125,1520.7,1520.4,0.83098253]
[1674092834389,8.51303,1520.7,1520.4,0.83098253]
[1674092834600,8.51303,1520.7,1520.4,7.40799253]
[1674092834816,8.51303,1520.7,1520.4,7.47399253]
[1674092835018,0.06543,1520.7,1520.4,7.47399253]
[1674092835233,9.56233,1520.8,1520.4,7.47399253]
[1674092835440,9.56233,1520.8,1520.4,14.05120253]
[1674092835687,0.55863,1520.8,1520.4,14.05120253]
[1674092836000,0.4932,1520.8,1520.4,14.05120253]
[1674092837740,15.49468,1520.9,1520.4,14.05120253]
[1674092837955,15.49468,1520.9,1520.4,19.76866915]
[1674092837956,8.84573,1520.9,1520.4,19.76866915]
[1674092838168,8.84573,1520.9,1520.5,4.553]
[1674092838387,8.84573,1520.9,1520.6,6.57626]
[1674092838600,0.06543,1520.9,1520.6,7.64226]
[1674092838834,9.07973,1521.0,1520.6,6.64226]
[1674092839263,6.21166,1521.0,1520.6,0.066]
[1674092839475,1.546,1520.8,1520.4,0.15598253]
[1674092839696,1.546,1520.8,1520.4,0.08998253]
[1674092840492,7.14884,1520.8,1520.4,0.08998253]
[1674092840695,7.21427,1520.8,1520.4,0.08998253]
[1674092841002,0.721427,1520.7,1520.4,0.08998253]
[1674092841247,11.845666,1520.9,1520.4,6.66689253]
[1674092841248,13.457096,1520.9,1520.4,6.66689253]
[1674092841424,13.457096,1520.9,1520.4,6.73289253]
[1674092841637,18.059726,1520.9,1520.4,13.31010253]
[1674092841841,1.3457096,1520.8,1520.4,6.73289253]
[1674092843638,1.3457096,1520.8,1520.4,0.15598253]
[1674092843639,10.24033719,1520.8,1520.4,0.15598253]
[1674092843833,10.76048,1520.5,1520.4,0.08998253]
[1674092844043,10.82591,1520.5,1520.4,0.08998253]
[1674092846368,11.82591,1520.5,1520.4,0.08998253]
[1674092849330,12.31921,1520.5,1520.4,0.08998253]
[1674092849546,14.053332,1520.5,1520.4,0.08998253]
[1674092849758,12.500332,1520.5,1520.4,0.08998253]
[1674092851116,7.896592,1520.5,1520.4,0.08998253]
[1674092851774,8.896592,1520.5,1520.4,0.08998253]
[1674092851984,7.896592,1520.5,1520.4,0.08998253]
[1674092853887,3.292852,1520.5,1520.4,0.08998253]
[1674092854096,0.4933,1520.5,1520.4,0.08998253]
[1674092854418,9.48383,1520.6,1520.4,0.83098253]
[1674092854572,0.06543,1520.6,1520.4,0.83098253]
[1674092854782,1.02403372,1520.7,1520.4,0.83098253]
[1674092855036,1.51733372,1520.7,1520.4,0.83098253]
[1674092855257,1.51733372,1520.7,1520.4,7.40818253]
[1674092855576,1.51733372,1520.7,1520.4,7.47418253]
[1674092856393,0.15173337,1520.6,1520.4,0.15598253]
[1674092856613,0.15173337,1520.6,1520.4,0.08998253]
[1674092859989,1.02403372,1520.7,1520.6,0.00268978]
[1674092860817,1.02403372,1520.7,1520.6,0.74368978]
[1674092861024,10.1813396,1520.8,1520.6,0.74368978]
[1674092861627,10.1813396,1520.8,1520.6,7.32001978]
[1674092861628,8.83563,1520.8,1520.6,7.32001978]
[1674092861843,8.83563,1520.8,1520.6,7.38601978]
[1674092862053,8.83563,1520.8,1520.6,13.96236978]
[1674092862297,0.06543,1520.8,1520.6,13.96236978]
[1674092862493,9.69223,1520.9,1520.6,13.96236978]
[1674092863002,0.55863,1520.9,1520.6,13.96236978]
[1674092863214,0.4932,1520.9,1520.6,13.96236978]
[1674092865032,0.4904028,1520.9,1520.6,13.96236978]
[1674092865613,0.55863,1521.0,1520.6,13.96236978]
[1674092865787,10.48523,1521.1,1520.6,15.51536978]
[1674092866325,10.48523,1521.1,1520.6,14.96236978]
[1674092867208,10.48523,1521.1,1520.6,14.22136978]
[1674092868882,10.48523,1521.1,1520.6,13.22136978]
[1674092869397,11.17384312,1521.1,1520.6,13.22136978]
[1674092869727,10.48523,1521.1,1520.6,13.22136978]
[1674092869934,21.93087312,1521.1,1520.6,6.64501978]
[1674092870188,7.79536731,1521.0,1520.6,6.64501978]
[1674092870411,6.86079731,1521.0,1520.6,6.64501978]
[1674092870576,0.06543,1521.0,1520.6,6.64501978]
[1674092870772,12.03823,1521.1,1520.6,13.22136978]
[1674092872509,10.48523,1521.1,1520.6,13.22136978]
[1674092876813,10.48523,1521.1,1520.6,14.22136978]
[1674092877199,9.99213,1521.1,1520.7,1.0]
[1674092877422,9.99213,1521.1,1520.8,19.7262]
[1674092877626,0.06543,1521.1,1520.8,19.7922]
[1674092877974,9.49553,1521.2,1520.8,19.7922]
[1674092878212,10.76200131,1521.2,1520.8,19.7922]
[1674092879225,11.45061443,1521.2,1520.8,19.7922]
[1674092879392,1.0,1521.1,1520.8,19.7922]
[1674092880179,12.45061443,1521.2,1520.8,19.7922]
[1674092880340,2.24506144,1521.1,1520.8,19.7922]
[1674092880994,1.24506144,1521.1,1520.8,19.7922]
[1674092882031,1.24506144,1521.1,1520.8,6.6414]
[1674092883061,2.24506144,1521.1,1520.8,6.6414]
[1674092884010,1.0,1521.0,1520.8,0.066]
[1674092884223,1.0,1521.0,1520.7,6.6419]
[1674092884224,1.22450614,1521.0,1520.7,6.6419]
[1674092885713,0.22450614,1521.0,1520.7,13.21781]
[1674092886375,1.22450614,1521.0,1520.7,6.6419]
[1674092886584,0.12245061,1520.9,1520.7,6.6419]
[1674092886799,0.12245061,1520.9,1520.7,0.066]
[1674092887009,0.12245061,1520.9,1520.6,16.46328978]
[1674092887535,0.12245061,1520.9,1520.6,6.64488978]
[1674092887748,0.12245061,1520.9,1520.6,0.06868978]
[1674092887749,1.552,1520.8,1520.6,0.06868978]
[1674092887918,0.9122,1520.7,1520.6,0.00268978]
[1674092889291,0.90949849,1520.7,1520.6,0.00268978]
[1674092890931,0.15249849,1520.7,1520.6,0.00268978]
[1674092891091,2.46249849,1520.7,1520.6,0.00268978]
[1674092896791,12.66877849,1520.7,1520.6,0.00268978]
[1674092897061,13.22750849,1520.7,1520.6,0.00268978]
[1674092897271,24.07751104,1520.7,1520.6,0.00268978]
[1674092897441,24.99898262,1520.7,1520.6,0.00268978]
[1674092897634,1.0,1520.6,1520.4,0.08998253]
[1674092897849,2.553,1520.5,1520.4,0.08998253]
[1674092898058,20.54068662,1520.5,1520.4,0.08998253]